fUST/lending_fUST_20250530
["ID","MTS","AMOUNT","RATE_DAILY","PERIOD"]
[363103570,1748579511233,-430.0,0.00019178,2]
[363103571,1748579511256,-500.0,0.00019178,2]
[363103572,1748579511277,-430.0,0.00019178,2]
[363103573,1748579511301,-500.0,0.00019178,2]
[363103574,1748579511324,-500.0,0.00019178,2]
[363103575,1748579511346,-500.0,0.00019178,2]
[363103576,1748579511367,-488.56224471,0.00019178,2]
[363103577,1748579511394,-450.0,0.00019178,2]
[363103578,1748579511417,-1199.57,0.00019178,2]
[363103579,1748579511438,-430.0,0.00019178,2]
[363103580,1748579511460,-432.027105,0.00019178,2]
[363103581,1748579511482,-500.0,0.00019178,2]
[363103582,1748579511504,-1024.89975299,0.00019178,2]
[363103583,1748579511526,-430.0,0.00019178,2]
[363103584,1748579511552,-430.0,0.00019178,2]
[363103585,1748579511575,-430.0,0.00019178,2]
[363103586,1748579511596,-345.89486169,0.00019178,2]
[363103587,1748579511618,-430.0,0.00019178,2]
[363103588,1748579511640,-430.0,0.00019178,2]
[363103589,1748579511661,-430.0,0.00019178,2]
[363103590,1748579511683,-6891.47,0.00019178,2]
[363103591,1748579511704,-430.0,0.00019178,2]
[363103592,1748579511724,-430.0,0.00019178,2]
[363103593,1748579511747,-430.0,0.00019178,2]
[363103594,1748579511768,-430.0,0.00019178,2]
[363103595,1748579511789,-430.0,0.00019178,2]
[363103596,1748579511812,-5963.43,0.00019178,2]
[363103597,1748579511835,-430.0,0.00019178,2]
[363103598,1748579511858,-565.1,0.00019178,2]
[363103599,1748579511879,-206.037986,0.00019178,2]
[363103600,1748579511902,-430.0,0.00019178,2]
[363103601,1748579511924,-430.0,0.00019178,2]
[363103602,1748579511945,-430.0,0.00019178,2]
[363103603,1748579511967,-430.0,0.00019178,2]
[363103604,1748579511989,-430.0,0.00019178,2]
[363103605,1748579512011,-430.0,0.00019178,2]
[363103606,1748579512034,-430.0,0.00019178,2]
[363103607,1748579512056,-430.0,0.00019178,2]
[363103608,1748579512080,-430.0,0.00019178,2]
[363103609,1748579512103,-430.0,0.00019178,2]
[363103610,1748579512131,-430.0,0.00019178,2]
[363103611,1748579512152,-430.0,0.00019178,2]
[363103612,1748579512175,-430.0,0.00019178,2]
[363103613,1748579512201,-4363.4,0.00019178,2]
[363103614,1748579512223,-430.0,0.00019178,2]
[363103615,1748579512245,-151.0,0.00019178,2]
[363103616,1748579512267,-430.0,0.00019178,2]
[363103617,1748579512289,-430.0,0.00019178,2]
[363103618,1748579512312,-430.0,0.00019178,2]
[363103619,1748579512335,-430.0,0.00019178,2]
[363103620,1748579512359,-430.0,0.00019178,2]
[363103621,1748579512380,-430.0,0.00019178,2]
[363103622,1748579512403,-430.0,0.00019178,2]
[363103623,1748579512425,-6846.01,0.00019178,2]
[363103624,1748579512447,-430.0,0.00019178,2]
[363103625,1748579512567,-1590.24,0.00019178,2]
[363103626,1748579512590,-430.0,0.00019178,2]
[363103627,1748579512611,-300.92538813,0.00019178,2]
[363103628,1748579512633,-430.0,0.00019178,2]
[363103629,1748579512655,-430.0,0.00019178,2]
[363103630,1748579512677,-430.0,0.00019178,2]
[363103631,1748579512700,-430.0,0.00019178,2]
[363103632,1748579512722,-430.0,0.00019178,2]
[363103633,1748579512744,-430.0,0.00019178,2]
[363103634,1748579512766,-268.3737017,0.00019178,2]
[363103635,1748579512789,-151.0,0.00019178,2]
[363103636,1748579512811,-221.06554,0.00019178,2]
[363103637,1748579512834,-151.0,0.00019205,2]
[363103638,1748579512855,-500.0,0.00019205,2]
[363103639,1748579512881,-151.27891375,0.00019205,2]
[363103640,1748579512903,-198.0,0.00019233,2]
[363103641,1748579512926,-500.0,0.00019233,2]
[363103642,1748579512949,-156.587,0.00019233,2]
[363103643,1748579512973,-151.0,0.0001926,2]
[363103644,1748579512995,-500.0,0.0001926,2]
[363103645,1748579513017,-500.0,0.00019288,2]
[363103646,1748579513040,-162.380719,0.00019288,2]
[363103647,1748579513062,-212.7380601,0.00019303,2]
[363103648,1748579513086,-160.0,0.00019303,2]
[363103649,1748579513108,-842.5625,0.00019303,2]
[363103650,1748579513136,-423.39538199,0.00019303,2]
[363103651,1748579513159,-229.30959854,0.00019303,2]
[363103652,1748579513181,-160.0,0.00019303,2]
[363103653,1748579513203,-160.0,0.00019303,2]
[363103654,1748579513225,-160.0,0.00019303,2]
[363103655,1748579513247,-500.0,0.00019315,2]
[363103656,1748579513270,-597.72,0.00019319,3]
[363103657,1748579513293,-151.0,0.00019329,2]
[363103658,1748579513318,-151.0,0.00019329,2]
[363103659,1748579513342,-151.0,0.00019329,2]
[363103660,1748579513364,-8370.53510032,0.00019329,2]
[363103661,1748579513386,-500.0,0.00019342,2]
[363103662,1748579513409,-168.3888056,0.00019343,2]
[363103663,1748579513431,-423.86,0.0001936,3]
[363103664,1748579513454,-163.58,0.00019361,2]
[363103665,1748579513475,-500.0,0.0001937,2]
[363103666,1748579513495,-500.0,0.00019397,2]
[363103667,1748579513517,-174.61919141,0.00019398,2]
[363103668,1748579513539,-2204.15480696,0.00019416,2]
[363103669,1748579513560,-500.0,0.00019425,2]
[363103670,1748579513582,-420.0,0.00019447,2]
[363103671,1748579513603,-500.0,0.00019452,2]
[363103672,1748579513624,-151.0,0.00019452,2]
[363103673,1748579513646,-151.0,0.00019452,2]
[363103674,1748579513667,-151.0,0.00019452,2]
[363103675,1748579513688,-430.0,0.00019452,2]
[363103676,1748579513710,-430.0,0.00019452,2]
[363103677,1748579513731,-430.0,0.00019452,2]
[363103678,1748579513752,-502.40494254,0.00019452,2]
[363103679,1748579513773,-430.0,0.00019452,2]
[363103680,1748579513795,-238.938346,0.00019452,2]
[363103681,1748579513817,-238.938346,0.00019452,2]
[363103682,1748579513838,-238.938346,0.00019452,2]
[363103683,1748579513858,-430.0,0.00019452,2]
[363103684,1748579513880,-238.938346,0.00019452,2]
[363103685,1748579513904,-238.938346,0.00019452,2]
[363103686,1748579513925,-238.938346,0.00019452,2]
[363103687,1748579513947,-430.0,0.00019452,2]
[363103688,1748579513968,-430.0,0.00019452,2]
[363103689,1748579513990,-430.0,0.00019452,2]
[363103690,1748579514012,-430.0,0.00019452,2]
[363103691,1748579514033,-430.0,0.00019452,2]
[363103692,1748579514055,-420.0,0.00019452,2]
[363103693,1748579514078,-430.0,0.00019452,2]
[363103694,1748579514101,-467.45248504,0.00019452,2]
[363103695,1748579514126,-430.0,0.00019452,2]
[363103696,1748579514149,-430.0,0.00019452,2]
[363103697,1748579514275,-430.0,0.00019452,2]
[363103698,1748579514297,-373.92717138,0.00019452,2]
[363103699,1748579514320,-375.87908355,0.00019452,2]
[363103700,1748579514342,-430.0,0.00019452,2]
[363103701,1748579514367,-430.0,0.00019452,2]
[363103702,1748579514390,-527.384,0.00019452,2]
[363103703,1748579514413,-430.0,0.00019452,2]
[363103704,1748579514436,-430.0,0.00019452,2]
[363103705,1748579514458,-472.74,0.00019452,2]
[363103706,1748579514480,-151.0,0.00019452,2]
[363103707,1748579514502,-151.0,0.00019452,2]
[363103708,1748579514524,-151.0,0.00019452,2]
[363103709,1748579514546,-344.23476378,0.00019452,2]
[363103710,1748579514569,-276.94288617,0.00019452,2]
[363103711,1748579514595,-151.0,0.00019452,2]
[363103712,1748579514618,-151.0,0.00019452,2]
[363103713,1748579514642,-151.0,0.00019452,2]
[363103714,1748579514666,-151.0,0.00019452,2]
[363103715,1748579514689,-151.0,0.00019452,2]
[363103716,1748579514710,-151.0,0.00019452,2]
[363103717,1748579514735,-430.0,0.00019452,2]
[363103718,1748579514758,-430.0,0.00019452,2]
[363103719,1748579514781,-430.0,0.00019452,2]
[363103720,1748579514804,-430.0,0.00019452,2]
[363103721,1748579514828,-430.0,0.00019452,2]
[363103722,1748579514851,-430.0,0.00019452,2]
[363103723,1748579514875,-151.0,0.00019452,2]
[363103724,1748579514898,-151.0,0.00019452,2]
[363103725,1748579514920,-151.0,0.00019452,2]
[363103726,1748579514943,-151.0,0.00019452,2]
[363103727,1748579514964,-151.0,0.00019452,2]
[363103728,1748579514987,-258.367951,0.00019452,2]
[363103729,1748579515009,-1885.816453,0.00019452,2]
[363103730,1748579515031,-1885.816453,0.00019452,2]
[363103731,1748579515054,-1885.816453,0.00019452,2]
[363103732,1748579515076,-1885.816453,0.00019452,2]
[363103733,1748579515098,-1885.816453,0.00019452,2]
[363103734,1748579515122,-430.0,0.00019452,2]
[363103735,1748579515145,-1885.816453,0.00019452,2]
[363103736,1748579515170,-386.59918037,0.00019452,2]
[363103737,1748579515195,-430.0,0.00019452,2]
[363103738,1748579515218,-430.0,0.00019452,2]
[363103739,1748579515240,-430.0,0.00019452,2]
[363103740,1748579515261,-151.0,0.00019452,2]
[363103741,1748579515282,-151.0,0.00019452,2]
[363103742,1748579515304,-151.0,0.00019452,2]
[363103743,1748579515328,-430.0,0.00019452,2]
[363103744,1748579515351,-430.0,0.00019452,2]
[363103745,1748579515373,-430.0,0.00019452,2]
[363103746,1748579515402,-310.47288694,0.00019452,2]
[363103747,1748579515428,-353.092485,0.00019452,2]
[363103748,1748579515451,-353.092485,0.00019452,2]
[363103749,1748579515475,-353.092485,0.00019452,2]
[363103750,1748579515498,-453.00019899,0.00019452,2]
[363103751,1748579515522,-283.957067,0.00019452,2]
[363103752,1748579515545,-353.092485,0.00019452,2]
[363103753,1748579515568,-353.092485,0.00019452,2]
[363103754,1748579515590,-283.957067,0.00019452,2]
[363103755,1748579515615,-353.092485,0.00019452,2]
[363103756,1748579515637,-283.957067,0.00019452,2]
[363103757,1748579515659,-430.0,0.00019452,2]
[363103758,1748579515681,-430.0,0.00019452,2]
[363103759,1748579515702,-430.0,0.00019452,2]
[363103760,1748579515725,-283.957067,0.00019452,2]
[363103761,1748579515747,-283.957067,0.00019452,2]
[363103762,1748579515770,-283.957067,0.00019452,2]
[363103763,1748579515791,-443.66779385,0.00019452,2]
[363103764,1748579515814,-430.0,0.00019452,2]
[363103765,1748579515837,-430.0,0.00019452,2]
[363103766,1748579515948,-430.0,0.00019452,2]
[363103767,1748579515971,-655.03,0.00019452,2]
[363103768,1748579515993,-544.91,0.00019452,2]
[363103769,1748579516015,-208.80137931,0.00019452,2]
[363103770,1748579516039,-430.0,0.00019452,2]
[363103771,1748579516062,-430.0,0.00019452,2]
[363103772,1748579516087,-430.0,0.00019452,2]
[363103773,1748579516111,-361.07240354,0.00019452,2]
[363103774,1748579516138,-430.0,0.00019452,2]
[363103775,1748579516163,-1407.800385,0.00019452,2]
[363103776,1748579516187,-1407.800385,0.00019452,2]
[363103777,1748579516212,-1407.800385,0.00019452,2]
[363103778,1748579516236,-715.58,0.00019452,2]
[363103779,1748579516257,-151.0,0.00019452,2]
[363103780,1748579516280,-151.0,0.00019452,2]
[363103781,1748579516302,-151.0,0.00019452,2]
[363103782,1748579516326,-430.0,0.00019452,2]
[363103783,1748579516349,-430.0,0.00019452,2]
[363103784,1748579516372,-430.0,0.00019452,2]
[363103785,1748579516395,-442.93548135,0.00019452,2]
[363103786,1748579516419,-430.0,0.00019452,2]
[363103787,1748579516443,-430.0,0.00019452,2]
[363103788,1748579516466,-430.0,0.00019452,2]
[363103789,1748579516488,-430.0,0.00019452,2]
[363103790,1748579516511,-430.0,0.00019452,2]
[363103791,1748579516534,-430.0,0.00019452,2]
[363103792,1748579516557,-151.0,0.00019452,2]
[363103793,1748579516581,-151.0,0.00019452,2]
[363103794,1748579516603,-151.0,0.00019452,2]
[363103795,1748579516626,-430.0,0.00019452,2]
[363103796,1748579516648,-367.88774632,0.00019452,2]
[363103797,1748579516671,-430.0,0.00019452,2]
[363103798,1748579516694,-430.0,0.00019452,2]
[363103799,1748579516716,-270.0,0.00019452,2]
[363103800,1748579516741,-430.0,0.00019452,2]
[363103801,1748579516764,-430.0,0.00019452,2]
[363103802,1748579516787,-430.0,0.00019452,2]
[363103803,1748579516809,-152.601221,0.00019452,2]
[363103804,1748579516832,-151.0,0.00019452,2]
[363103805,1748579516855,-151.0,0.00019452,2]
[363103806,1748579516876,-151.0,0.00019452,2]
[363103807,1748579516898,-182.092416,0.00019452,2]
[363103808,1748579516920,-430.0,0.00019452,2]
[363103809,1748579516943,-151.0,0.00019452,2]
[363103810,1748579516966,-635.83,0.00019452,2]
[363103811,1748579516989,-151.0,0.00019452,2]
[363103812,1748579517012,-151.0,0.00019452,2]
[363103813,1748579517035,-430.0,0.00019452,2]
[363103814,1748579517058,-430.0,0.00019452,2]
[363103815,1748579517081,-430.0,0.00019452,2]
[363103816,1748579517103,-430.0,0.00019452,2]
[363103817,1748579517128,-430.0,0.00019452,2]
[363103818,1748579517149,-430.0,0.00019452,2]
[363103819,1748579517172,-430.0,0.00019452,2]
[363103820,1748579517196,-430.0,0.00019452,2]
[363103821,1748579517219,-250.95682,0.00019452,2]
[363103822,1748579517241,-430.0,0.00019452,2]
[363103823,1748579517264,-430.0,0.00019452,2]
[363103824,1748579517287,-430.0,0.00019452,2]
[363103825,1748579517309,-430.0,0.00019452,2]
[363103826,1748579517333,-811.87,0.00019452,2]
[363103827,1748579517356,-430.0,0.00019452,2]
[363103828,1748579517379,-952.06,0.00019452,2]
[363103829,1748579517401,-151.0,0.00019452,2]
[363103830,1748579517424,-192.900493,0.00019452,2]
[363103831,1748579517446,-430.0,0.00019452,2]
[363103832,1748579517559,-430.0,0.00019452,2]
[363103833,1748579517584,-430.0,0.00019452,2]
[363103834,1748579517607,-168.820604,0.00019452,2]
[363103835,1748579517630,-430.0,0.00019452,2]
[363103836,1748579517652,-168.820604,0.00019452,2]
[363103837,1748579517675,-168.820604,0.00019452,2]
[363103838,1748579517698,-168.820604,0.00019452,2]
[363103839,1748579517721,-168.820604,0.00019452,2]
[363103840,1748579517743,-168.820604,0.00019452,2]
[363103841,1748579517766,-168.820604,0.00019452,2]
[363103842,1748579517788,-168.820604,0.00019452,2]
[363103843,1748579517810,-430.0,0.00019452,2]
[363103844,1748579517835,-430.0,0.00019452,2]
[363103845,1748579517859,-312.584327,0.00019452,2]
[363103846,1748579517882,-312.584327,0.00019452,2]
[363103847,1748579517906,-312.584327,0.00019452,2]
[363103848,1748579517930,-312.584327,0.00019452,2]
[363103849,1748579517954,-312.584327,0.00019452,2]
[363103850,1748579517977,-312.584327,0.00019452,2]
[363103851,1748579518001,-481.69,0.00019452,2]
[363103852,1748579518024,-430.0,0.00019452,2]
[363103853,1748579518048,-430.0,0.00019452,2]
[363103854,1748579518073,-430.0,0.00019452,2]
[363103855,1748579518096,-151.0,0.00019452,2]
[363103856,1748579518121,-151.0,0.00019452,2]
[363103857,1748579518144,-151.0,0.00019452,2]
[363103858,1748579518169,-1164.11,0.00019452,2]
[363103859,1748579518192,-430.0,0.00019452,2]
[363103860,1748579518217,-430.0,0.00019452,2]
[363103861,1748579518242,-816.04,0.00019452,2]
[363103862,1748579518265,-430.0,0.00019452,2]
[363103863,1748579518289,-430.0,0.00019452,2]
[363103864,1748579518317,-452.29,0.00019452,2]
[363103865,1748579518343,-638.35,0.00019452,2]
[363103866,1748579518366,-430.0,0.00019452,2]
[363103867,1748579518389,-459.59,0.00019452,2]
[363103868,1748579518411,-430.0,0.00019452,2]
[363103869,1748579518434,-430.0,0.00019452,2]
[363103870,1748579518457,-430.0,0.00019452,2]
[363103871,1748579518480,-430.0,0.00019452,2]
[363103872,1748579518504,-430.0,0.00019452,2]
[363103873,1748579518527,-430.0,0.00019452,2]
[363103874,1748579518550,-527.56,0.00019452,2]
[363103875,1748579518575,-430.0,0.00019452,2]
[363103876,1748579518598,-430.0,0.00019452,2]
[363103877,1748579518621,-430.0,0.00019452,2]
[363103878,1748579518644,-430.0,0.00019452,2]
[363103879,1748579518666,-997.55,0.00019452,2]
[363103880,1748579518688,-430.0,0.00019452,2]
[363103881,1748579518711,-430.0,0.00019452,2]
[363103882,1748579518734,-430.0,0.00019452,2]
[363103883,1748579518758,-524.7,0.00019452,2]
[363103884,1748579518782,-430.0,0.00019452,2]
[363103885,1748579518805,-151.0,0.00019452,2]
[363103886,1748579518828,-430.0,0.00019452,2]
[363103887,1748579518851,-430.0,0.00019452,2]
[363103888,1748579518873,-449.05,0.00019452,2]
[363103889,1748579518894,-430.0,0.00019452,2]
[363103890,1748579518919,-882.49,0.00019452,2]
[363103891,1748579518944,-183.55907475,0.00019452,2]
[363103892,1748579518967,-491.99,0.00019452,2]
[363103893,1748579518990,-430.0,0.00019452,2]
[363103894,1748579519013,-430.0,0.00019452,2]
[363103895,1748579519036,-2575.56,0.00019452,2]
[363103896,1748579519141,-847.07,0.00019452,2]
[363103897,1748579519165,-3211.33,0.00019452,2]
[363103898,1748579519187,-430.0,0.00019452,2]
[363103899,1748579519211,-430.0,0.00019452,2]
[363103900,1748579519232,-430.0,0.00019452,2]
[363103901,1748579519255,-439.76,0.00019452,2]
[363103902,1748579519276,-430.0,0.00019452,2]
[363103903,1748579519299,-421.92,0.00019452,2]
[363103904,1748579519323,-1872.36,0.00019452,2]
[363103905,1748579519346,-430.0,0.00019452,2]
[363103906,1748579519368,-151.0,0.00019452,2]
[363103907,1748579519391,-1148.18,0.00019452,2]
[363103908,1748579519413,-430.0,0.00019452,2]
[363103909,1748579519437,-4263.7,0.00019452,2]
[363103910,1748579519461,-430.0,0.00019452,2]
[363103911,1748579519483,-430.0,0.00019452,2]
[363103912,1748579519505,-330.82302092,0.00019452,2]
[363103913,1748579519528,-514.41,0.00019452,2]
[363103914,1748579519552,-430.0,0.00019452,2]
[363103915,1748579519576,-442.99,0.00019452,2]
[363103916,1748579519598,-430.0,0.00019452,2]
[363103917,1748579519621,-430.0,0.00019452,2]
[363103918,1748579519647,-1165.59,0.00019452,2]
[363103919,1748579519672,-430.0,0.00019452,2]
[363103920,1748579519696,-430.0,0.00019452,2]
[363103921,1748579519719,-1090.86,0.00019452,2]
[363103922,1748579519742,-163.5218092,0.00019452,2]
[363103923,1748579519765,-430.0,0.00019452,2]
[363103924,1748579519787,-430.0,0.00019452,2]
[363103925,1748579519809,-1123.13,0.00019452,2]
[363103926,1748579519830,-430.0,0.00019452,2]
[363103927,1748579519852,-430.0,0.00019452,2]
[363103928,1748579519876,-430.0,0.00019452,2]
[363103929,1748579519899,-939.79,0.00019452,2]
[363103930,1748579519921,-163.751103,0.00019452,2]
[363103931,1748579519945,-430.0,0.00019452,2]
[363103932,1748579519969,-1437.37,0.00019452,2]
[363103933,1748579519992,-430.0,0.00019452,2]
[363103934,1748579520016,-430.0,0.00019452,2]
[363103935,1748579520041,-163.751103,0.00019452,2]
[363103936,1748579520065,-163.751103,0.00019452,2]
[363103937,1748579520089,-163.751103,0.00019452,2]
[363103938,1748579520114,-430.0,0.00019452,2]
[363103939,1748579520139,-430.0,0.00019452,2]
[363103940,1748579520163,-163.751103,0.00019452,2]
[363103941,1748579520187,-163.751103,0.00019452,2]
[363103942,1748579520213,-163.751103,0.00019452,2]
[363103943,1748579520238,-564.92835148,0.00019452,2]
[363103944,1748579520261,-430.0,0.00019452,2]
[363103945,1748579520285,-163.751103,0.00019452,2]
[363103946,1748579520310,-2452.8,0.00019452,2]
[363103947,1748579520334,-1307.22,0.00019452,2]
[363103948,1748579520357,-452.0,0.00019452,2]
[363103949,1748579520380,-430.0,0.00019452,2]
[363103950,1748579520401,-432.81345013,0.00019452,2]
[363103951,1748579520422,-430.0,0.00019452,2]
[363103952,1748579520444,-430.0,0.00019452,2]
[363103953,1748579520466,-430.0,0.00019452,2]
[363103954,1748579520489,-430.0,0.00019452,2]
[363103955,1748579520510,-430.0,0.00019452,2]
[363103956,1748579520535,-430.0,0.00019452,2]
[363103957,1748579520652,-435.0924416,0.00019452,2]
[363103958,1748579520676,-430.0,0.00019452,2]
[363103959,1748579520698,-430.0,0.00019452,2]
[363103960,1748579520723,-469.57,0.00019452,2]
[363103961,1748579520747,-430.0,0.00019452,2]
[363103962,1748579520770,-430.0,0.00019452,2]
[363103963,1748579520792,-430.0,0.00019452,2]
[363103964,1748579520815,-163.820263,0.00019452,2]
[363103965,1748579520838,-163.820263,0.00019452,2]
[363103966,1748579520862,-163.820263,0.00019452,2]
[363103967,1748579520885,-430.0,0.00019452,2]
[363103968,1748579520907,-430.0,0.00019452,2]
[363103969,1748579520929,-430.0,0.00019452,2]
[363103970,1748579520952,-430.0,0.00019452,2]
[363103971,1748579520975,-163.820263,0.00019452,2]
[363103972,1748579520997,-163.820263,0.00019452,2]
[363103973,1748579521020,-163.820263,0.00019452,2]
[363103974,1748579521044,-430.0,0.00019452,2]
[363103975,1748579521067,-612.9,0.00019452,2]
[363103976,1748579521090,-430.0,0.00019452,2]
[363103977,1748579521116,-1962.51,0.00019452,2]
[363103978,1748579521141,-430.0,0.00019452,2]
[363103979,1748579521167,-430.0,0.00019452,2]
[363103980,1748579521190,-430.0,0.00019452,2]
[363103981,1748579521216,-151.0,0.00019452,2]
[363103982,1748579521239,-151.0,0.00019452,2]
[363103983,1748579521261,-151.0,0.00019452,2]
[363103984,1748579521284,-2903.13,0.00019452,2]
[363103985,1748579521310,-430.0,0.00019452,2]
[363103986,1748579521335,-754.62,0.00019452,2]
[363103987,1748579521357,-573.47976568,0.00019452,2]
[363103988,1748579521383,-4208.57,0.00019452,2]
[363103989,1748579521405,-385.40300432,0.00019452,2]
[363103990,1748579521428,-606.82,0.00019452,2]
[363103991,1748579521451,-430.0,0.00019452,2]
[363103992,1748579521474,-430.0,0.00019452,2]
[363103993,1748579521497,-430.0,0.00019452,2]
[363103994,1748579521519,-430.0,0.00019452,2]
[363103995,1748579521546,-1304.78,0.00019452,2]
[363103996,1748579521571,-430.0,0.00019452,2]
[363103997,1748579521597,-430.0,0.00019452,2]
[363103998,1748579521620,-430.0,0.00019452,2]
[363103999,1748579521645,-430.0,0.00019452,2]
[363104000,1748579521669,-430.0,0.00019452,2]
[363104001,1748579521693,-430.0,0.00019452,2]
[363104002,1748579521715,-193.85598481,0.00019452,2]
[363104003,1748579521739,-430.0,0.00019452,2]
[363104004,1748579521762,-151.0,0.00019452,2]
[363104005,1748579521786,-430.0,0.00019452,2]
[363104006,1748579521809,-151.0,0.00019452,2]
[363104007,1748579521834,-3170.66,0.00019452,2]
[363104008,1748579521857,-151.0,0.00019452,2]
[363104009,1748579521880,-461.81979733,0.00019452,2]
[363104010,1748579521903,-430.0,0.00019452,2]
[363104011,1748579521926,-403.61522114,0.00019452,2]
[363104012,1748579521950,-151.0,0.00019452,2]
[363104013,1748579521973,-255.203902,0.00019452,2]
[363104014,1748579521997,-430.0,0.00019452,2]
[363104015,1748579522020,-430.0,0.00019452,2]
[363104016,1748579522164,-430.0,0.00019452,2]
[363104017,1748579522194,-415.03256498,0.00019452,2]
[363104018,1748579522219,-486.65474464,0.00019452,2]
[363104019,1748579522243,-430.0,0.00019452,2]
[363104020,1748579522267,-430.0,0.00019452,2]
[363104021,1748579522291,-430.0,0.00019452,2]
[363104022,1748579522316,-430.0,0.00019452,2]
[363104023,1748579522341,-408.24031496,0.00019452,2]
[363104024,1748579522366,-508.67,0.00019452,2]
[363104025,1748579522392,-2231.13,0.00019452,2]
[363104026,1748579522417,-430.0,0.00019452,2]
[363104027,1748579522441,-430.0,0.00019452,2]
[363104028,1748579522466,-430.0,0.00019452,2]
[363104029,1748579522490,-430.0,0.00019452,2]
[363104030,1748579522514,-430.0,0.00019452,2]
[363104031,1748579522536,-430.0,0.00019452,2]
[363104032,1748579522558,-533.75333659,0.00019452,2]
[363104033,1748579522582,-430.0,0.00019452,2]
[363104034,1748579522605,-430.0,0.00019452,2]
[363104035,1748579522627,-423.70980898,0.00019452,2]
[363104036,1748579522650,-430.0,0.00019452,2]
[363104037,1748579522672,-456.07446011,0.00019452,2]
[363104038,1748579522695,-2492.29,0.00019452,2]
[363104039,1748579522718,-317.70247842,0.00019452,2]
[363104040,1748580082160,2718384.67056855,0.00021917,60]
[363104056,1748580115101,1220.17379,0.00013699,2]
[363104064,1748580272894,-5000.0,0.00016814,2]
[363104065,1748580272917,-300.0,0.00016984,2]
[363104066,1748580272938,-210.0822044,0.00016985,2]
[363104067,1748580272960,-24853.9177956,0.00016985,2]
[363104069,1748580358800,-5000.0,0.00016815,2]
[363104070,1748580358823,-17.0,0.00016985,2]
[363104072,1748580426263,-5000.0,0.00016815,2]
[363104073,1748580495821,-1073.88827887,0.00016815,2]
[363104074,1748580495842,-206.0906959,0.0001688,2]
[363104075,1748580495864,-29.0822044,0.00016985,2]
[363104076,1748580552860,49.93882083,0.00016013,2]
[363104077,1748580555247,-118.37117917,0.00016013,2]
[363104078,1748580555269,-210.39,0.0001668,2]
[363104079,1748580555292,-174.51926569,0.00017016,2]
[363104171,1748580638175,-5000.0,0.00016564,2]
[363104172,1748580638187,-175.96,0.00016731,2]
[363104173,1748580638200,-12.72817781,0.00017016,2]
[363104174,1748580638213,-211.15,0.00017401,2]
[363104175,1748580638236,-164.90024098,0.00017779,2]
[363104176,1748580638251,-450.54797566,0.0001778,2]
[363104177,1748580638266,-164.90024098,0.00017781,2]
[363104180,1748580638280,-164.90024098,0.00017782,2]
[363104182,1748580638294,-1200.0,0.00017878,2]
[363104184,1748580638306,-300.0,0.00017879,2]
[363104186,1748580638320,-289.0,0.00017879,2]
[363104189,1748580638333,-300.0,0.00017879,2]
[363104192,1748580638346,-300.0,0.00017879,2]
[363104195,1748580638360,-300.0,0.00017879,2]